Cogmind - Beta 15 @@@ ROGUE MODE // 2025.07.21 @ 13:29:59 Player: Err. String Expected Got Nil Result: Destroyed by B-74 Champion with Powered Hammer Performance ------------- Evolutions (9) 4500 Regions Visited (26) 5200 Robots Destroyed (460) 2300 Value Destroyed (15273) 15273 Prototype IDs (113) 2260 Alien Tech Used (0) 0 Bonus (12098) 12098 TOTAL SCORE: 41631 Bonus ------- High Alert Combat Kills 1117 Follower Combat Kills 1801 Network Hubs Disabled 200 Aligned with FarCom 300 Met Data Miner 300 Met Warlord at Base 500 MAIN.C Attacked Warlord 500 Warlord Defense Kills 1360 Built Enhanced Grunts 300 A7 Reached Mainframe 300 Met R17 at Cetus 500 Met R17 at Research 2000 Met Warlord at Research 2000 Invited to Help at Command 2000 Friendly Fire -1080 Cogmind --------- Core Integrity 0/1600 Matter 225/300 Energy 92/100 System Corruption 30% Temperature Cool (0) Movement Core (50) Location -1/Access Parts ------- > --- POWER (2) -------- (None) > --- PROPULSION (8) --- (None) > --- UTILITY (11) ----- Improved Armor Integrity Analyzer Graphene Brace > --- WEAPON (4) ------- (None) > --- INVENTORY (5) ---- Matter Compressor (0) Long-range Terrain Scanner Advanced Cloaking Device Enhanced Hardcell Cannon Advanced Remote Datajack Peak State ------------ > --- POWER ------------ Light Quantum Reactor Reinforced Quantum Reactor > --- PROPULSION ------- Combat Antigrav System Combat Antigrav System Combat Antigrav System Combat Antigrav System Combat Antigrav System Cooled Linear Gravjet Cooled Linear Gravjet Combat Linear Gravjet > --- UTILITY ---------- Power Amplifier Advanced Heat Sink Advanced Cooling System Large Storage Unit Advanced Terrain Scan Processor Advanced Target Analyzer Experimental Reaction Control System Advanced Phase Shifter Medium Regenerative Plating Graphene Brace Advanced Shield Generator > --- WEAPON ----------- Advanced KE Penetrator Advanced KE Penetrator Helical Railgun Enhanced Hardcell Cannon > --- INVENTORY -------- Quantum Reactor Combat Antigrav System Combat Linear Gravjet Matter Compressor Long-range Terrain Scanner Improved Armor Integrity Analyzer Advanced Weapon Cycler Advanced Cloaking Device Advanced Focal Shield EM Shield Enhanced Nova Cannon Enhanced Hardcell Cannon Mini Smartbomb Launcher Advanced Remote Datajack Ionic Axe [Rating: 199] Favorites ----------- Power Enhanced Fission Core Engine Improved Ion Engine Power Core Enhanced Fission Core Reactor Cold Fusion Reactor Propulsion Combat Airjet Treads Light Treads Leg Titanium Leg Hover Unit Combat Airjet Utility Large Storage Unit Device Advanced Cooling System Storage Large Storage Unit Processor Advanced Targeting Computer Hackware Hacking Suite Protection Medium Regenerative Plating Weapon Advanced KE Penetrator Energy Gun Precision Beam Rifle Energy Cannon Matter Neutralizer Ballistic Gun Advanced KE Penetrator Ballistic Cannon Gauss Cannon Launcher Mini Smartbomb Launcher Special Weapon Advanced Remote Datajack Slashing Weapon Phasing Sabre Special Melee Weapon Datajack Build | -11 -10 -10 -9 -9 -9 -8 -8 -7 -7 -7 -7 -6 -6 -6 -6 -6 -6 -5 -5 -5 -5 -4 -4 -3 -2 -1 ------- Run | Yrd Mat Min Mat Min Exi Min Mat Fac Low Low Dat Pro Fac Ext Cet Arc Hub Fac Upp Upp War Pro Fac Res Res Acc Slots Evolved 18 | . . . 2 . . . 2 2 . . . . 2 . . . . 2 . . . . 2 2 2 2 Power 1 | . . . . . . . . . . . . . . . . . . 1 . . . . . . . . Propulsion 6 | . . . 1 . . . . 1 . . . . 1 . . . . 1 . . . . 1 . 1 . Utility 9 | . . . 1 . . . 1 1 . . . . 1 . . . . . . . . . 1 2 1 1 Weapon 2 | . . . . . . . 1 . . . . . . . . . . . . . . . . . . 1 Parts Attached 292 | 6 11 3 27 2 2 2 15 39 . 1 . 6 33 6 8 3 1 31 3 . 8 2 21 16 28 18 Power 27 | 1 1 . 4 . . . 3 2 . . . . 2 . . . . 3 . . 1 . 2 2 4 2 Engine 8 | 1 1 . 4 . . . 2 . . . . . . . . . . . . . . . . . . . Core 6 | . . . . . . . 1 2 . . . . 1 . . . . 2 . . . . . . . . Reactor 13 | . . . . . . . . . . . . . 1 . . . . 1 . . 1 . 2 2 4 2 Propulsion 69 | 2 3 1 11 2 . . 3 10 . . . 1 7 . 1 . . 8 . . 2 . 5 2 7 4 Treads 22 | 2 3 1 11 2 . . 3 . . . . . . . . . . . . . . . . . . . Leg 6 | . . . . . . . . 6 . . . . . . . . . . . . . . . . . . Wheel . | . . . . . . . . . . . . . . . . . . . . . . . . . . . Hover 41 | . . . . . . . . 4 . . . 1 7 . 1 . . 8 . . 2 . 5 2 7 4 Flight . | . . . . . . . . . . . . . . . . . . . . . . . . . . . Utility 110 | 1 4 1 7 . . 1 5 13 . 1 . 2 13 4 3 2 . 16 2 . 3 . 6 6 12 8 Device 70 | . 2 1 2 . . 1 1 4 . 1 . 2 7 4 . 1 . 14 2 . 3 . 4 4 10 7 Storage 8 | 1 2 . 2 . . . . 1 . . . . 1 . . . . . . . . . 1 . . . Processor 11 | . . . 1 . . . 1 1 . . . . . . 1 . . 1 . . . . 1 2 2 1 Hackware 6 | . . . . . . . . 1 . . . . 3 . . 1 . 1 . . . . . . . . Protection 15 | . . . 2 . . . 3 6 . . . . 2 . 2 . . . . . . . . . . . Artifact . | . . . . . . . . . . . . . . . . . . . . . . . . . . . Weapon 86 | 2 3 1 5 . 2 1 4 14 . . . 3 11 2 4 1 1 4 1 . 2 2 8 6 5 4 Energy Gun 18 | 1 . 1 1 . 1 . 1 5 . . . . 3 . 1 . . . . . 1 . 2 1 . . Energy Cannon 8 | . 1 . . . . . . . . . . . 1 . . . . 1 . . . 1 1 2 . 1 Ballistic Gun 32 | 1 1 . 4 . . . 3 5 . . . 2 3 1 1 . 1 3 1 . 1 1 1 . 2 1 Ballistic Cannon 14 | . 1 . . . . . . 2 . . . . 2 . 1 . . . . . . . 2 2 2 2 Launcher 7 | . . . . . . 1 . 1 . . . 1 1 1 . . . . . . . . 1 1 . . Special Weapon 2 | . . . . . . . . . . . . . 1 . . . . . . . . . . . 1 . Impact Weapon . | . . . . . . . . . . . . . . . . . . . . . . . . . . . Slashing Weapon 3 | . . . . . . . . 1 . . . . . . 1 . . . . . . . 1 . . . Piercing Weapon . | . . . . . . . . . . . . . . . . . . . . . . . . . . . Special Melee Weapon 2 | . . . . . 1 . . . . . . . . . . 1 . . . . . . . . . . Unidentified Prototypes 36 | . . 1 2 . . . 2 3 . . . . 6 . 4 . 1 3 . . 4 . 3 2 5 . Parts Lost 70 | . . . 7 . . . 1 7 . 1 . 6 2 3 2 . . 3 . . 2 2 2 . 1 31 Power 8 | . . . 2 . . . . 1 . . . 1 . . . . . . . . 1 . . . . 3 Propulsion 14 | . . . . . . . . 2 . . . 1 . . 1 . . . . . . . . . . 10 Utility 33 | . . . 3 . . . 1 1 . 1 . 2 1 3 1 . . 3 . . 1 . 2 . 1 13 Weapon 15 | . . . 2 . . . . 3 . . . 2 1 . . . . . . . . 2 . . . 5 Highest Loss Streak 24 | . . . 2 . . . 1 2 . 1 . 2 2 1 3 . . 2 . . 2 2 1 . 1 24 To Critical Strikes 2 | . . . . . . . . . . . . . . . 1 . . . . . . 1 . . . . Average Backups 15 | 1 9 14 15 20 20 20 19 16 15 14 15 13 14 14 14 14 15 14 14 15 14 14 14 14 14 14 Power 1 | . 1 1 1 2 2 2 1 1 1 1 1 . 1 1 1 1 1 . . . . . 1 1 1 . Propulsion 2 | . 2 4 4 5 6 6 7 2 1 1 1 . 1 2 1 1 2 1 4 4 4 4 2 2 2 1 Utility 6 | . 1 3 3 5 6 7 5 6 8 7 7 6 6 6 5 5 5 7 8 8 7 7 6 4 6 6 Weapon 4 | 1 3 5 4 4 4 3 3 4 4 4 5 4 4 4 6 6 7 5 2 3 3 3 4 5 5 3 Tool/Special . | . . . . . . . . . . . . . . . . . . . . . . . . . . . Unused Backups 64 | . 4 2 4 2 . . 9 6 . 1 . 1 10 . . 2 . 6 . . . . 8 3 5 1 Power 14 | . 1 . 1 . . . 4 1 . . . . 4 . . . . . . . . . 1 2 . . Propulsion 2 | . . . . . . . 1 . . . . . . . . . . 1 . . . . . . . . Utility 24 | . 1 2 1 . . . 2 3 . 1 . 1 6 . . 1 . 2 . . . . 2 . 1 1 Weapon 24 | . 2 . 2 2 . . 2 2 . . . . . . . 1 . 3 . . . . 5 1 4 . Tool/Special . | . . . . . . . . . . . . . . . . . . . . . . . . . . . Average Slot Usage (%) 99 | . 98 100 99 100 100 100 99 98 100 99 80 95 98 100 99 100 100 99 100 100 99 99 99 98 99 97 Engine 2 | . 14 14 10 11 11 11 7 . . . . . . . . . . . . . . . . . . . Core 3 | . . . . . . . 1 6 7 7 7 6 3 . . . . 9 11 11 10 5 5 2 . . Reactor 2 | . . . . . . . . . . . . . 2 6 6 6 6 1 . . . 5 5 5 8 7 Treads 7 | . 28 28 33 33 33 33 27 . . . . . . . . . . . . . . . . . . . Leg 1 | . . . . . . . . 14 . . . . . . . . . . . . . . . . . . Hover 23 | . . . . . . . . 15 30 30 30 30 32 33 32 33 33 34 35 35 35 35 36 33 34 31 Device 14 | . 12 14 10 11 11 11 15 10 15 13 . 9 9 11 6 5 6 21 16 17 16 17 15 22 23 26 Storage 6 | . 14 14 11 11 11 11 9 7 7 7 7 7 6 6 6 6 6 5 5 5 5 5 5 4 4 4 Processor 5 | . . . 4 . . . 5 7 7 7 7 7 6 6 4 6 6 1 5 5 5 5 9 8 10 9 Hackware 3 | . . . . . . . . 6 7 7 7 7 11 13 13 13 13 3 . . . . . . . . Protection 4 | . . . 6 11 11 11 4 4 . . 7 1 4 1 7 6 6 1 5 5 5 5 5 4 4 3 Energy Gun 3 | . 4 19 2 . . 11 9 9 . . . . 4 6 4 6 4 2 . . . . . . . . Energy Cannon 1 | . 9 4 . . . . . . . . . . . . . . . 1 . . . 2 4 3 . . Ballistic Gun 9 | . 4 . 17 22 12 8 18 8 15 13 4 13 5 5 12 8 6 8 11 11 11 8 5 3 2 10 Ballistic Cannon 2 | . 9 3 1 . . . . 2 7 6 . 6 5 6 . . 2 . . . . . . . 2 2 Slashing Weapon 2 | . . . . . . . . 1 . 1 7 1 2 . . 3 4 3 4 5 3 4 3 3 3 2 Peak Build Rating 199 | 6 10 17 20 19 20 22 40 60 65 65 55 60 84 85 89 91 91 115 114 111 119 115 134 147 175 199 Average Rating 82 | 5 8 10 17 18 18 20 35 51 65 57 46 56 74 80 79 87 87 103 111 111 113 106 128 139 169 189 On Entrance 68 | . 6 10 11 18 19 20 22 40 58 65 55 55 51 83 74 87 91 83 113 111 111 115 105 117 142 175 Naked Turns . | . . . . . . . . . . . . . . . . . . . . . . . . . . . Heaviest Build 119 | 13 32 32 60 59 59 60 65 67 46 48 48 54 60 57 62 57 58 88 77 77 80 78 91 91 109 119 Greatest Support 136 | 40 40 40 63 63 63 63 63 68 48 48 48 48 57 57 57 57 57 78 78 78 78 78 104 93 116 136 Greatest Overweight (x) 1 | 1 . . . . . . 1 1 . . . 1 1 . 1 . 1 1 . . 1 . 1 1 1 1 Average Overweight (x) . | . . . . . . . . . . . . . . . . . . . . . . . . . . . Largest Inventory Capacity 20 | 8 15 15 20 20 20 20 20 20 15 15 15 15 15 15 15 15 15 15 15 15 15 15 15 15 15 15 Average Capacity 15 | 7 11 15 16 20 20 20 20 17 15 15 15 15 15 15 15 15 15 15 15 15 15 15 15 15 15 14 Most Carried 20 | 3 15 15 20 20 20 20 20 20 15 15 15 15 15 15 15 15 15 15 15 15 15 15 15 15 15 15 Average Carried 15 | 1 9 14 15 19 19 20 19 16 15 14 15 13 14 14 14 14 15 14 14 15 14 14 14 14 14 14 Final Capacity 20 | 8 15 15 20 20 20 20 20 15 15 15 15 15 15 15 15 15 15 15 15 15 15 15 15 15 15 5 Final Carried 20 | 3 15 15 20 20 20 20 20 15 15 15 15 13 15 15 15 15 15 15 15 15 15 15 15 15 15 5 Class Distribution -------------------- 13% | Scavenger-Mutant 11% | Machinist-Mutant 10% | Mutant 6% | Scavenger-Scout 5% | Skirmisher 5% | Scavenger-Ninja 5% | Hacker-Skirmisher 5% | Ninja 4% | Hacker-Mutant 3% | Scavenger-Skirmisher 3% | Machinist-Gunner 3% | Commander-Gunner 3% | Machinist-Skirmisher 3% | Commander-Mutant Dominant Class ---------------- Mutant | -10/Materials Mutant | -10/Mines Scavenger-Mutant | -9/Materials Scavenger-Mutant | -9/Mines Scavenger-Mutant | -9/Exiles Scavenger-Mutant | -8/Mines Skirmisher | -8/Materials Scavenger-Skirmisher | -7/Factory Machinist-Gunner | -7/Lower Caves Machinist-Gunner | -7/Lower Caves Machinist-Mutant | -7/Data Miner Gunner | -6/Proximity Caves Hacker-Skirmisher | -6/Factory Commander-Gunner | -6/Extension Commander-Gunner | -6/Cetus Commander-Mutant | -6/Archives Commander-Mutant | -6/Hub_04(d) Ninja | -5/Factory Machinist-Mutant | -5/Upper Caves Machinist-Mutant | -5/Upper Caves Commander-Mutant | -5/Warlord Machinist-Mutant | -4/Proximity Caves Mutant | -4/Factory Scavenger-Ninja | -3/Research Scavenger-Scout | -2/Research Scavenger-Scout | -1/Access Resources | -11 -10 -10 -9 -9 -9 -8 -8 -7 -7 -7 -7 -6 -6 -6 -6 -6 -6 -5 -5 -5 -5 -4 -4 -3 -2 -1 ----------- Run | Yrd Mat Min Mat Min Exi Min Mat Fac Low Low Dat Pro Fac Ext Cet Arc Hub Fac Upp Upp War Pro Fac Res Res Acc Matter Collected 15425 | 265 211 102 952 38 . 191 447 1472 36 423 . 784 1418 729 337 141 . 1976 281 19 484 216 1266 778 1107 1752 Remotely . | . . . . . . . . . . . . . . . . . . . . . . . . . . . Salvage Created 18405 | 132 517 140 1629 93 . 276 1165 1878 . 459 . 564 1670 943 131 290 . 2091 266 . 671 173 1657 790 675 2195 Parts 1019 | 5 40 12 120 6 . 32 74 92 . 18 . 31 75 44 4 21 . 116 14 . 28 11 96 35 23 122 Haulers Intercepted 19 | . 2 . 3 . . . 1 2 . . . . 4 . . . . 2 . . . . 1 2 1 1 Recyclers Shooed 9 | . . . . . . . . . . . . . 5 . . . . 2 . . . . . 1 . 1 Parts Field Recycled . | . . . . . . . . . . . . . . . . . . . . . . . . . . . Retrieved Matter . | . . . . . . . . . . . . . . . . . . . . . . . . . . . Parts Self-Destructed 71 | . . . . . . . . . 1 18 . 30 . . . . . . 13 . . 9 . . . . Prevented 1 | . . . . . . . . . 1 . . . . . . . . . . . . . . . . . Kills | -11 -10 -10 -9 -9 -9 -8 -8 -7 -7 -7 -7 -6 -6 -6 -6 -6 -6 -5 -5 -5 -5 -4 -4 -3 -2 -1 ------- Run | Yrd Mat Min Mat Min Exi Min Mat Fac Low Low Dat Pro Fac Ext Cet Arc Hub Fac Upp Upp War Pro Fac Res Res Acc Combat Hostiles Destroyed 304 | . 11 5 36 2 . 19 23 28 . 9 . 20 14 13 2 1 . 28 6 . 13 7 32 4 6 25 Melee 1 | . . . . . . . . . . . . . . . . . . 1 . . . . . . . . Guns 194 | . 5 3 33 2 . 2 23 22 . 8 . 9 8 10 . 1 . 24 6 . 13 3 6 1 3 12 Cannons 47 | . 6 2 1 . . . . 5 . 1 . 2 6 3 1 . . 3 . . . . 7 2 3 5 AOE 57 | . . . 2 . . 17 . . . . . 9 . . 1 . . . . . . 4 16 . . 8 Classes Destroyed 21 | 2 5 2 1 1 . 1 1 1 . 2 . 2 . . . . . . 1 . 1 . 1 . . . Worker 41 | . . 1 3 . . . 4 3 . . . . 8 . . . . 2 . . . . 7 6 1 6 Builder 14 | . . . 1 . . . . 2 . . . . . . . . . 2 . . . . 4 1 . 4 Tunneler 12 | 2 . . . . . 2 . . . . . . 2 1 . . . . . . . . 2 1 . 2 Hauler 19 | . 2 . 3 . . . 1 2 . . . . 4 . . . . 2 . . . . 1 2 1 1 Recycler 25 | 1 . . 2 . . . 1 5 . . . . 4 1 . . . 2 . . . . 1 1 1 6 Minesweeper 2 | . . . . . . . . . . 2 . . . . . . . . . . . . . . . . Mechanic 1 | . . . . . . . . . . 1 . . . . . . . . . . . . . . . . Operator 13 | . 2 . 1 . . . 1 1 . . . . . . . 6 . 2 . . . . . . . . Watcher 24 | . 2 . 4 . . . 3 3 . . . . 3 1 1 . . 3 . . . . 2 1 . 1 Swarmer 113 | . 3 3 14 . . 18 8 9 . 3 . 12 2 . . . . 9 4 . 4 5 8 . 1 10 Cutter 5 | . . . . . . . . . . . . . . . . . . . . . . . 5 . . . Grunt 85 | . 8 . 14 1 . 3 8 8 . 6 . 4 6 5 . . . 7 . . 5 . 5 . 4 1 Brawler 3 | . . . . 1 . . . 1 . . . . . . . . . . . . 1 . . . . . Duelist 2 | . . . . . . 1 . 1 . . . . . . . . . . . . . . . . . . Protector 1 | . . . . . . . . . . . . 1 . . . . . . . . . . . . . . Sentry 38 | . . 2 8 . . . 6 4 . . . 1 1 5 . 1 . 3 . . . . 4 1 . 2 Demolisher 3 | . . . . . . . . . . . . 2 . . . . . . . . . . . . 1 . Specialist 2 | . . . . . . . . . . . . . . . . . . . . . 2 . . . . . Hunter 9 | . . . . . . . 1 2 . . . . . 2 . . . . . . . 2 . . . 2 Programmer 43 | . . . . . . . . 3 . . . . 5 . . . . 9 2 . 1 . 10 3 . 10 Cetus Guard 2 | . . . . . . . . . . . . . . . 2 . . . . . . . . . . . Samaritan 1 | . . . . . . . . . . . . . . . . . . . 1 . . . . . . . Thug 1 | . . . . . . . . . . . . . . 1 . . . . . . . . . . . . Savage 1 | . . . . . . . . . . . . . . . 1 . . . . . . . . . . . Butcher 1 | . . . . . . . . . . . . . . . . . . . . . . . . . 1 . Best Kill Streak 9 | 3 3 3 8 2 . 6 6 7 . 5 . 9 5 3 1 2 . 6 4 . 6 5 8 5 5 7 Combat Bots Only 9 | . 3 3 4 2 . 5 4 6 . 3 . 9 4 3 1 1 . 5 4 . 6 5 8 2 4 5 Max Kills in Single Turn 6 | 1 1 2 2 2 . 6 3 2 . 1 . 3 2 2 1 1 . 2 2 . 2 2 3 1 2 2 Gunslinging 2 | . . 1 1 1 . . 2 1 . . . . . . . . . 1 . . . . . . . . Exploded 4 | . . . 1 . . 4 . . . . . 3 . . 1 . . . . . . 2 3 . . 2 Melee 1 | . . . . . . . . . . . . . . . . . . 1 . . . . . . . . Uniques/NPCs Destroyed . | . . . . . . . . . . . . . . . . . . . . . . . . . . . Combat | -11 -10 -10 -9 -9 -9 -8 -8 -7 -7 -7 -7 -6 -6 -6 -6 -6 -6 -5 -5 -5 -5 -4 -4 -3 -2 -1 -------- Run | Yrd Mat Min Mat Min Exi Min Mat Fac Low Low Dat Pro Fac Ext Cet Arc Hub Fac Upp Upp War Pro Fac Res Res Acc Hostile Shots Fired 2161 | . 52 28 180 1 . 11 80 222 . 61 . 124 95 194 27 5 5 150 32 . 70 37 174 23 56 534 Missed 828 | . 15 10 43 . . 3 29 71 . 20 . 55 35 105 12 2 . 50 7 . 36 14 74 13 27 207 Hits 1333 | . 37 18 137 1 . 8 51 151 . 41 . 69 60 89 15 3 5 100 25 . 34 23 100 10 29 327 Melee 15 | . . . . . . . . 9 . 1 . . . . . . . . . . . . 3 . . 2 Projectile 1318 | . 37 18 137 1 . 8 51 142 . 40 . 69 60 89 15 3 5 100 25 . 34 23 97 10 29 325 AOE 12 | . . . . . . . . . . . . 9 . 1 . . . . . . . . 2 . . . Critical Strikes 63 | . 1 1 3 . . . 3 4 . . . 1 1 1 4 . . 10 1 . 3 1 6 1 1 21 Actively Blocked 22 | . . . . . . . . . . . . . . . . . . . . . . . . . 1 21 Part Disruptions 10 | . . . . . . . . . . . . . . . . . . 1 . . 3 . 1 . . 5 Damage Taken 21984 | 20 427 258 1582 11 . 215 477 2323 . 641 . 1302 705 892 377 91 137 1647 414 . 776 380 1707 257 641 6704 Core 3511 | . 62 53 236 . . 16 27 193 . 63 . 198 73 126 43 23 61 164 30 . 125 51 257 44 23 1643 Absorbed by Shields 1759 | . . . . . . . 185 . . . . . 97 149 15 . . 303 . . 6 46 449 27 100 382 Ignored by Resistances 688 | . . . . . . . . . . . . . . 16 . . . 47 . . . . 6 . . 619 Regen/Repaired (Parts) 2422 | . . . 124 . . . . 203 . . . . 83 . 17 60 . 454 73 . 161 72 529 79 276 291 Core Remaining (%) 71 | 100 . 54 . . . 37 95 . . . . 35 . . . . 61 . . . . 63 77 96 98 . Volleys Fired 943 | 5 43 10 126 3 . 11 53 115 3 19 . 62 63 56 16 4 10 80 13 . 29 19 87 20 24 72 Largest 4 | 2 2 2 2 2 . 2 3 3 1 3 . 3 3 3 3 3 1 3 3 . 3 3 3 3 3 4 Hottest 240 | 60 90 90 85 46 . 89 112 150 40 96 . 96 96 143 145 145 240 213 101 . 156 173 231 197 209 189 Shots Fired 2193 | 10 86 20 252 6 . 19 159 296 3 50 . 121 152 141 27 8 10 216 33 1 83 31 149 41 60 219 Gun 1640 | 10 37 4 237 6 . 9 159 269 . 38 . 64 98 85 12 8 7 188 33 1 83 20 67 16 30 159 Cannon 497 | . 49 16 15 . . . . 27 3 12 . 50 54 54 4 . 3 28 . . . 9 66 25 27 55 Launcher 53 | . . . . . . 10 . . . . . 7 . 2 11 . . . . . . 2 16 . . 5 Special 3 | . . . . . . . . . . . . . . . . . . . . . . . . . 3 . Kinetic 1591 | 5 43 8 220 6 . . 106 182 3 50 . 111 109 98 15 7 3 148 33 1 71 20 63 22 53 214 Thermal 487 | . 25 8 . . . 9 53 114 . . . 3 43 41 1 1 7 68 . . 12 9 70 19 4 . Explosive 53 | . . . . . . 10 . . . . . 7 . 2 11 . . . . . . 2 16 . . 5 Electromagnetic 59 | 5 18 4 32 . . . . . . . . . . . . . . . . . . . . . . . Robot Hit Streak 35 | 6 5 8 21 4 . 2 34 35 . 10 . 10 31 12 8 6 . 21 5 . 5 6 10 5 5 10 Robot Miss Streak 6 | 2 3 2 5 2 . 4 3 5 . 3 . 2 3 2 4 1 . 6 6 . 3 2 4 2 4 6 Penetration Max 1 | . . . . . . . 1 1 . . . . 1 1 1 . . 1 . . 1 . . . 1 1 Secondary Targets 32 | . 1 1 5 1 . . 4 8 . 1 . . 1 . . . . 3 3 . 2 . 1 . . 1 Max Gunslinging Chain 2 | . 1 1 1 1 . . 2 1 . 1 . . 1 . . . . 1 1 . 1 . 1 . . 1 Shots Hit Robots 1421 | 7 47 15 164 4 12 2 121 197 . 30 . 63 123 95 20 21 . 148 11 . 49 14 75 48 34 121 Core Hits 720 | 5 23 7 65 3 . 30 53 75 . 19 . 38 55 39 31 6 . 57 7 . 29 15 66 15 16 66 Critical Kills 26 | . . . . . . . . . . . . . 1 1 1 1 . 8 1 . 1 . 3 1 1 7 Critical Parts Destroyed 36 | . . . 2 . . . 1 2 . . . . . 3 . 1 . 4 1 . 5 . 1 1 1 14 Critical Strikes 114 | . 1 . 2 . . 2 5 13 . 1 . 3 6 5 3 2 . 12 2 . 7 . 8 6 7 29 Burn 18 | . . . . . . 2 4 11 . . . . 1 . . . . . . . . . . . . . Meltdown 4 | . . . . . . . . . . . . . . . . . . . . . . . 3 1 . . Destroy 62 | . . . 2 . . . 1 2 . . . . 1 4 2 2 . 12 2 . 7 . 1 1 2 23 Blast 22 | . 1 . . . . . . . . 1 . 3 3 1 . . . . . . . . 2 2 5 4 Sever 8 | . . . . . . . . . . . . . 1 . 1 . . . . . . . 2 2 . 2 Melee Attacks 320 | . . . . . 12 . . 14 . 1 . 1 38 . 4 16 4 52 4 . . 8 90 33 8 35 Impact . | . . . . . . . . . . . . . . . . . . . . . . . . . . . Slashing 307 | . . . . . . . . 14 . 1 . 1 38 . 4 15 4 52 4 . . 8 90 33 8 35 Piercing . | . . . . . . . . . . . . . . . . . . . . . . . . . . . Sneak Attacks 80 | . . . . . 12 . . 2 . . . . 12 . 4 10 . 6 1 . . . 11 10 1 11 Combat Hostiles . | . . . . . . . . . . . . . . . . . . . . . . . . . . . Follow-up Attacks . | . . . . . . . . . . . . . . . . . . . . . . . . . . . Damage Inflicted 49017 | 148 681 277 2865 69 . 1235 2461 4284 . 658 . 2115 3641 3335 1651 1256 . 4786 456 . 1913 651 6291 2583 1444 6217 Guns 24756 | 75 217 33 2537 59 . 44 2402 3739 . 535 . 985 1813 1354 203 144 . 3180 351 . 1913 304 1123 260 610 2875 Cannons 7856 | . 463 242 128 . . . . 197 . 86 . 445 929 1433 81 . . 463 . . . 80 987 691 670 961 Explosions 8059 | 73 . . 131 . . 1180 . 167 . . . 685 . 548 1133 . . . . . . 267 2765 . . 1110 Melee 8157 | . . . . . . . . 181 . . . . 899 . 234 1112 . 1143 105 . . . 1416 1632 164 1271 Ramming 189 | . 1 2 69 10 . 11 59 . . 37 . . . . . . . . . . . . . . . . Kinetic 24966 | 34 355 120 2454 59 . . 1601 2385 . 621 . 1411 1957 1996 251 144 . 2416 351 . 1802 304 1155 472 1242 3836 Thermal 7787 | 73 211 122 131 . . 44 801 1713 . . . 19 785 791 33 . . 1227 . . 111 80 1129 479 38 . Explosive 7514 | . . . . . . 1180 . . . . . 685 . 548 1133 . . . . . . 267 2591 . . 1110 Electromagnetic 404 | 41 114 33 211 . . . . 5 . . . . . . . . . . . . . . . . . . Impact . | . . . . . . . . . . . . . . . . . . . . . . . . . . . Slashing 8157 | . . . . . . . . 181 . . . . 899 . 234 1112 . 1143 105 . . . 1416 1632 164 1271 Piercing . | . . . . . . . . . . . . . . . . . . . . . . . . . . . Highest Corruption 27 | . . . . . . . . 4 4 9 9 9 2 2 2 2 1 6 7 7 7 . 7 7 5 27 Average Corruption 4 | . . . . . . . . 3 4 8 9 9 1 2 2 1 1 3 6 7 7 . 5 2 5 3 Corruption Purged 5 | . . . . . . . . . . . . . 3 . . 2 . . . . . . . . . . Corruption Blocked . | . . . . . . . . . . . . . . . . . . . . . . . . . . . Effects 320 | . . . . . . . . 40 5 11 2 30 20 15 3 2 . 49 29 4 1 . 39 17 32 21 Message Errors 67 | . . . . . . . . 8 2 . . 3 5 3 1 . . 14 5 . . . 7 6 10 3 Matter Fused 86 | . . . . . . . . 12 1 5 2 7 5 1 . 2 . 15 9 2 . . 10 3 7 5 Heat Flow Errors 37 | . . . . . . . . 7 1 2 . 2 3 3 . . . 7 1 . . . 5 . 3 3 Energy Discharges 26 | . . . . . . . . 2 . 2 . 4 3 1 . . . 2 3 . . . 5 1 1 2 Parts Rejected 1 | . . . . . . . . . . . . . . . . . . . . . . . 1 . . . Parts Fused 4 | . . . . . . . . . . . . 1 . 1 . . . . 1 . . . . . . 1 Data Loss (minor) 48 | . . . . . . . . 6 1 1 . 5 3 2 . . . 6 7 1 . . 4 3 6 3 Data Loss (major) 12 | . . . . . . . . 2 . 1 . . 1 . 1 . . 1 1 . . . 2 2 1 . Misfires 22 | . . . . . . . . 2 . . . 3 . 4 1 . . 1 . 1 1 . 3 2 4 . Alerts 6 | . . . . . . . . . . . . 1 . . . . . 2 1 . . . 1 . . 1 Misdirections 1 | . . . . . . . . . . . . . . . . . . . . . . . . . . 1 Weapon Failures 10 | . . . . . . . . 1 . . . 4 . . . . . 1 1 . . . 1 . . 2 Overload Shots 1 | . . . . . . . . . . . . . . . . . 1 . . . . . . . . . Overflow Damage 2653 | . 21 . 5 . . 72 4 24 . 7 . 38 185 70 . 473 . 313 . . . 4 541 465 . 431 Projectiles 245 | . 21 . . . . . . . . . . . 42 22 . . . . . . . . 23 31 . 106 Explosions 492 | . . . 5 . . 72 . 24 . . . 38 . 48 . . . . . . . 4 222 . . 79 Melee 1916 | . . . . . . . 4 . . 7 . . 143 . . 473 . 313 . . . . 296 434 . 246 Knockbacks 38 | . 1 . . . . . 1 1 . 2 . 4 7 9 1 . . . . . . . . 1 3 8 Impact 2 | . . . . . . . 1 . . 1 . . . . . . . . . . . . . . . . Kinetic 35 | . 1 . . . . . . 1 . 1 . 4 7 8 1 . . . . . . . . 1 3 8 Secondary 1 | . . . . . . . . . . . . . . 1 . . . . . . . . . . . . Self-Inflicted Damage 361 | 20 . . 42 . . 107 . . . 18 . 135 . . . . . . . . . . 39 . . . Shots 10 | 1 . . 2 . . 3 . . . . . 3 . . . . . . . . . . 1 . . . Rammed 24 | . 2 1 7 2 . 3 8 . . 1 . . . . . . . . . . . . . . . . Targets Rammed 27 | . 2 2 7 2 . 4 9 . . 1 . . . . . . . . . . . . . . . . Kicked . | . . . . . . . . . . . . . . . . . . . . . . . . . . . Crushed 3 | . . 1 . . . 1 1 . . . . . . . . . . . . . . . . . . . Highest Temperature 626 | 32 153 47 49 . . 36 36 401 262 189 . 208 474 344 96 89 176 443 91 . 233 180 382 248 253 626 Average Temperature 81 | 16 50 29 17 . . 12 8 54 128 64 . 67 93 90 33 34 69 109 51 . 58 40 73 116 103 245 Received Heat Transfer 2926 | . 192 108 495 6 . 27 188 279 . 186 . 171 125 296 9 9 . 299 . . 45 . 80 9 72 330 Effects 25 | . . . . . . . . 1 . . . . 5 . . . . 9 . . . . . 1 . 9 Shutdowns 6 | . . . . . . . . . . . . . 2 . . . . 1 . . . . . . . 3 Energy Bleed 5 | . . . . . . . . . . . . . . . . . . 3 . . . . . 1 . 1 Interference 8 | . . . . . . . . . . . . . 3 . . . . 5 . . . . . . . . Matter Decay 1 | . . . . . . . . . . . . . . . . . . . . . . . . . . 1 Short Circuit 1 | . . . . . . . . . . . . . . . . . . . . . . . . . . 1 Damage (minor) 3 | . . . . . . . . 1 . . . . . . . . . . . . . . . . . 2 Damage (core) 1 | . . . . . . . . . . . . . . . . . . . . . . . . . . 1 Siege Activations . | . . . . . . . . . . . . . . . . . . . . . . . . . . . Martial Activations . | . . . . . . . . . . . . . . . . . . . . . . . . . . . Shielding Activations . | . . . . . . . . . . . . . . . . . . . . . . . . . . . Robots Disrupted . | . . . . . . . . . . . . . . . . . . . . . . . . . . . Combat Hostiles . | . . . . . . . . . . . . . . . . . . . . . . . . . . . Robots Corrupted 1 | . . . . . . . . . . 1 . . . . . . . . . . . . . . . . Combat Hostiles . | . . . . . . . . . . . . . . . . . . . . . . . . . . . Parts Fried 1 | . . . . . . . . . . 1 . . . . . . . . . . . . . . . . Impact Corruptions 2 | . . . . . . . 1 . . 1 . . . . . . . . . . . . . . . . Robots Melted 5 | . . . . . . . . 1 . . . . . . . . . . . . . . 3 1 . . Combat Hostiles 5 | . . . . . . . . 1 . . . . . . . . . . . . . . 3 1 . . Parts Melted 31 | . . 1 . . . . . 8 . . . . 5 3 . . . 3 . . . . 7 4 . . Heat Transferred 13743 | 50 444 259 200 . . 259 2035 4220 . . . 37 1517 1221 37 . . 1686 . . 148 74 1075 444 37 . Parts Sabotaged . | . . . . . . . . . . . . . . . . . . . . . . . . . . . Parts Stolen . | . . . . . . . . . . . . . . . . . . . . . . . . . . . Parts Stripped . | . . . . . . . . . . . . . . . . . . . . . . . . . . . Power Chain Reactions 6 | 1 . . 3 . . . . 2 . . . . . . . . . . . . . . . . . . Alert | -11 -10 -10 -9 -9 -9 -8 -8 -7 -7 -7 -7 -6 -6 -6 -6 -6 -6 -5 -5 -5 -5 -4 -4 -3 -2 -1 ------- Run | Yrd Mat Min Mat Min Exi Min Mat Fac Low Low Dat Pro Fac Ext Cet Arc Hub Fac Upp Upp War Pro Fac Res Res Acc Maximum Alert Level 4 | . . . 2 1 . 2 1 1 . . . . 1 2 1 1 . 3 . . . . 4 2 1 3 Low Security (%) 45 | 100 100 100 21 94 . 41 49 35 . . . . 98 70 . 52 100 19 . . . . 24 . 50 19 Level 1 35 | . . . 61 5 . 18 50 64 . . . . 1 18 99 47 . 45 . . . . 34 . 49 29 Level 2 14 | . . . 17 . . 39 . . . . . . . 11 . . . 21 . . . . 26 100 . 34 Level 3 4 | . . . . . . . . . . . . . . . . . . 13 . . . . 13 . . 15 Level 4 . | . . . . . . . . . . . . . . . . . . . . . . . . . . . Level 5 . | . . . . . . . . . . . . . . . . . . . . . . . . . . . High Security . | . . . . . . . . . . . . . . . . . . . . . . . . . . . Max Security . | . . . . . . . . . . . . . . . . . . . . . . . . . . . Peak Influence 1175 | 5 130 84 461 218 . 521 353 368 . . . . 204 538 356 234 155 819 . . . . 1175 655 389 918 Initial 611 | . . 24 . 168 . . 174 136 . . . . 106 26 281 98 50 16 . . . . 50 611 310 109 Average 259 | 1 51 25 294 73 . 254 210 244 . . . . 93 148 285 190 31 356 . . . . 399 607 223 407 Influence Increases 13793 | 15 426 115 1095 80 . 699 695 954 . 205 . 455 702 1016 408 236 218 1643 235 . 506 160 1846 298 397 1389 Destroy 0b10 Robot/C 6940 | . 220 100 720 60 . 480 460 560 . 180 . 380 280 520 160 80 60 660 120 . 380 140 680 80 120 500 Destroy 0b10 Robot/NC 790 | 15 30 5 70 . . 10 50 80 . 15 . 5 105 20 10 30 . 80 . . 5 . 85 60 15 100 Destroy Leader 1294 | . 58 10 184 20 . 70 128 130 . 10 . 40 84 62 . . 10 130 10 . . 20 156 36 22 114 Allied During Kill 878 | . . . . . . 41 . . . . . . . 348 170 110 70 18 . . 121 . . . . . Trap Triggered on 0b10 90 | . . . . . . . . . . . . . 20 10 . . . 60 . . . . . . . . Successful Hack 525 | . 27 . 37 . . . 9 66 . . . . 118 . 7 . 13 124 . . . . 55 69 . . Select Force Hacks 110 | . . . 60 . . . . . . . . . . . . . 50 . . . . . . . . . Disable Machine 540 | . 30 . . . . 15 30 75 . . . . 60 15 . 15 . 45 . . . . 135 15 15 90 Destroy Structure 1306 | . 1 . 9 . . 83 3 28 . . . . 35 26 61 1 15 166 . . . . 540 38 60 240 Partial Spotted 150 | . . . . . . . . . . . . . . . . . . 45 . . . . 75 . 15 15 Lose Combat Pursuer 1170 | . 60 . 15 . . . 15 15 . . . 30 . 15 . . . 315 105 . . . 120 . 150 330 Influence Decreases 13107 | 15 364 177 662 513 . 252 842 890 246 255 68 286 816 567 665 339 327 884 637 156 396 426 761 910 767 886 Entered New Map 3398 | . . 38 . 265 . . 273 164 136 23 68 . 63 29 223 149 94 19 295 76 236 346 30 554 243 74 Time Decay 8087 | 15 364 139 592 248 . 252 559 656 110 222 . 226 583 428 222 150 113 635 342 80 80 80 619 356 514 502 Lost Part 680 | . . . 70 . . . 10 70 . 10 . 60 20 30 20 . . 30 . . 20 . 20 . 10 310 Lost Ally 792 | . . . . . . . . . . . . . . 80 200 40 120 200 . . 60 . 92 . . . Purge Threat 150 | . . . . . . . . . . . . . 150 . . . . . . . . . . . . . Squads Dispatched 105 | . 3 . 5 . . . 5 19 . 1 . . 8 4 . . 2 17 . . . . 22 4 2 13 Investigation 28 | . 1 . 2 . . . 1 7 . . . . 2 1 . . 1 7 . . . . 5 . 1 . Extermination 31 | . . . . . . . . 5 . . . . 6 . . . 1 7 . . . . 7 . . 5 Reinforcement 36 | . 2 . 2 . . . 1 7 . . . . . 2 . . . 2 . . . . 10 4 1 5 Assault 4 | . . . 1 . . . . . . 1 . . . 1 . . . 1 . . . . . . . . Garrison 6 | . . . . . . . 3 . . . . . . . . . . . . . . . . . . 3 Intercept . | . . . . . . . . . . . . . . . . . . . . . . . . . . . Searches Triggered . | . . . . . . . . . . . . . . . . . . . . . . . . . . . Data Miner Redirects 3 | . . . . . . . . . . . . . . . . . . 2 . . . . 1 . . . Construction Impeded 6 | . . . . . . . . 1 . . . . . 2 . . . . . . . . 1 . . 2 Haulers Reinforced 4 | . . . . . . . . 1 . . . . . . . . . 1 . . . . . 1 . 1 Active Scanning Responses . | . . . . . . . . . . . . . . . . . . . . . . . . . . . Cargo Convoy Interrupts 1 | . . . . . . . . . . . . . . . . . . . . . . . 1 . . . Stealth | -11 -10 -10 -9 -9 -9 -8 -8 -7 -7 -7 -7 -6 -6 -6 -6 -6 -6 -5 -5 -5 -5 -4 -4 -3 -2 -1 --------- Run | Yrd Mat Min Mat Min Exi Min Mat Fac Low Low Dat Pro Fac Ext Cet Arc Hub Fac Upp Upp War Pro Fac Res Res Acc Distress Signals 62 | . 2 . 3 . . . 2 3 . . . 17 1 4 2 . . 5 . . 2 . 2 7 9 3 Communications Jammed . | . . . . . . . . . . . . . . . . . . . . . . . . . . . Distress Signals . | . . . . . . . . . . . . . . . . . . . . . . . . . . . Times Spotted 651 | . 20 5 47 3 . 18 31 61 . 18 . 28 24 36 10 14 10 81 10 . 42 7 83 11 24 68 Peak Tracking Total 15 | . 3 2 4 2 . 4 4 5 . 8 . 5 3 7 5 1 7 12 5 . 13 3 8 2 6 15 Tactical Retreats 83 | . 1 . 1 . . . 1 6 . 3 . 4 . 1 . . 1 16 4 . . 3 24 . 9 9 Traps | -11 -10 -10 -9 -9 -9 -8 -8 -7 -7 -7 -7 -6 -6 -6 -6 -6 -6 -5 -5 -5 -5 -4 -4 -3 -2 -1 ------- Run | Yrd Mat Min Mat Min Exi Min Mat Fac Low Low Dat Pro Fac Ext Cet Arc Hub Fac Upp Upp War Pro Fac Res Res Acc Traps Triggered 25 | . . . 1 . . . 1 2 . . . . 5 2 . . . 4 . . 1 . . 3 . 6 Indirectly 1 | . . . . . . . . 1 . . . . . . . . . . . . . . . . . . Trap Hack Attempts . | . . . . . . . . . . . . . . . . . . . . . . . . . . . Triggered . | . . . . . . . . . . . . . . . . . . . . . . . . . . . Disarmed . | . . . . . . . . . . . . . . . . . . . . . . . . . . . Reprogrammed . | . . . . . . . . . . . . . . . . . . . . . . . . . . . Reused 9 | . . . . . . . . . . . . . 2 1 . . . 6 . . . . . . . . Traps Reconfigurated 83 | . . . . . . . . . . . . . 28 7 . . . 48 . . . . . . . . Traps Extracted . | . . . . . . . . . . . . . . . . . . . . . . . . . . . Installed . | . . . . . . . . . . . . . . . . . . . . . . . . . . . Triggered 9 | . . . . . . . . . . . . . 2 1 . . . 6 . . . . . . . . Machines | -11 -10 -10 -9 -9 -9 -8 -8 -7 -7 -7 -7 -6 -6 -6 -6 -6 -6 -5 -5 -5 -5 -4 -4 -3 -2 -1 ---------- Run | Yrd Mat Min Mat Min Exi Min Mat Fac Low Low Dat Pro Fac Ext Cet Arc Hub Fac Upp Upp War Pro Fac Res Res Acc Machines Disabled 37 | . 2 . . . . 1 2 5 . . . . 4 2 . 1 . 3 . . . . 9 1 1 6 Max in Single Turn 2 | . 1 . . . . 1 1 2 . . . . 1 1 . . . 1 . . . . 2 1 1 2 Garrison Access 10 | . . . . . . . . 1 . . . . 2 . . . . 2 . . . . 1 1 3 . Network Hub 1 | . . . . . . . . . . . . . . . . . 1 . . . . . . . . . Energy Cycler 1 | . . . . . . . . . . . . . . 1 . . . . . . . . . . . . Machines Repaired . | . . . . . . . . . . . . . . . . . . . . . . . . . . . Machines Dismantled 1 | . . . . . . . . . . . . . 1 . . . . . . . . . . . . . Machines Sabotaged 1 | . . . . . . . . . . . . . . . . . 1 . . . . . . . . . Overloaded Fab Kills . | . . . . . . . . . . . . . . . . . . . . . . . . . . . Hacking | -11 -10 -10 -9 -9 -9 -8 -8 -7 -7 -7 -7 -6 -6 -6 -6 -6 -6 -5 -5 -5 -5 -4 -4 -3 -2 -1 --------- Run | Yrd Mat Min Mat Min Exi Min Mat Fac Low Low Dat Pro Fac Ext Cet Arc Hub Fac Upp Upp War Pro Fac Res Res Acc Machines Accessed 138 | . 6 . 9 . 2 . 7 18 . 1 3 . 24 4 1 . 3 23 1 1 . . 21 6 4 4 Terminals 70 | . 6 . 6 . . . 4 8 . . . . 13 3 1 . 3 9 . . . . 9 4 2 2 Fabricators 17 | . . . . . . . . 5 . . . . 2 . . . . 5 . . . . 4 . . 1 Repair Stations 14 | . . . 1 . . . 1 2 . . . . 3 . . . . 4 . . . . 2 1 . . Recycling Units 11 | . . . 2 . . . . . . . . . 3 1 . . . 2 . . . . 3 . . . Scanalyzers 4 | . . . . . . . 1 1 . . . . . . . . . 1 . . . . 1 . . . Garrison Access 14 | . . . . . . . 1 2 . . . . 3 . . . . 2 . . . . 2 1 2 1 Total Hacks 413 | . 20 . 24 . 2 . 22 53 . 1 24 . 64 10 2 . 10 83 1 1 . . 67 13 8 8 Successful 199 | . 7 . 19 . 2 . 7 24 . 1 24 . 29 4 1 . 5 36 1 1 . . 33 4 1 . Failed 214 | . 13 . 5 . . . 15 29 . . . . 35 6 1 . 5 47 . . . . 34 9 7 8 Catastrophic 49 | . 2 . . . . . 1 5 . . . . 7 1 1 . 2 9 . . . . 8 4 3 6 Database Lockouts . | . . . . . . . . . . . . . . . . . . . . . . . . . . . Manual 124 | . 12 . 13 . 1 . 11 11 . . . . 13 4 1 . 7 22 . . 1 . 19 3 5 1 Terminals 221 | . 20 . 16 . . . 13 23 . . . . 33 7 2 . 10 40 . . . . 40 10 5 2 Fabricators 49 | . . . . . . . . 14 . . . . 4 . . . . 20 . . . . 9 . . 2 Repair Stations 47 | . . . 4 . . . 2 8 . . . . 13 . . . . 13 . . . . 5 2 . . Recycling Units 28 | . . . 4 . . . . . . . . . 10 3 . . . 4 . . . . 7 . . . Scanalyzers 11 | . . . . . . . 4 3 . . . . . . . . . 2 . . . . 2 . . . Garrison Access 28 | . . . . . . . 3 5 . . . . 4 . . . . 4 . . . . 4 1 3 4 Terminal Hacks 92 | . 5 . 7 . 2 . 2 6 . 1 24 . 14 1 1 . 3 11 1 1 . . 10 3 . . Record 4 | . . . 1 . 1 . . . . . 2 . . . . . . . . . . . . . . . Part Schematic 17 | . . . . . . . . 2 . . 12 . 1 . . . . 2 . . . . . . . . Robot Schematic 7 | . . . . . . . . . . . 7 . . . . . . . . . . . . . . . Robot Analysis 5 | . 1 . 2 . . . . . . . . . 1 . . . . 1 . . . . . . . . Prototype ID Bank 17 | . 1 . 4 . . . 1 . . . 3 . 1 1 . . 1 2 . . . . 2 1 . . Open Door 4 | . . . . . . . . . . 1 . . . . 1 . . . 1 1 . . . . . . Level Access Points 2 | . . . . . . . . . . . . . . . . . 1 . . . . . . 1 . . Branch Access Points 3 | . 1 . . . . . . 1 . . . . . . . . 1 . . . . . . . . . Terminal Index 3 | . . . . . . . . . . . . . 1 . . . . 1 . . . . 1 . . . Fabricator Index 2 | . . . . . . . . 1 . . . . 1 . . . . . . . . . . . . . Alert Level 2 | . . . . . . . . . . . . . 1 . . . . . . . . . 1 . . . Unreport Threat 1 | . . . . . . . . . . . . . 1 . . . . . . . . . . . . . Locate Traps 8 | . 1 . . . . . . . . . . . 3 . . . . 2 . . . . 2 . . . Transport Status 3 | . . . . . . . . 1 . . . . 1 . . . . 1 . . . . . . . . Recall Investigation 2 | . . . . . . . . . . . . . . . . . . . . . . . 2 . . . Recall Extermination 1 | . . . . . . . . . . . . . . . . . . 1 . . . . . . . . Hauler Manifests 2 | . . . . . . . . . . . . . 1 . . . . 1 . . . . . . . . Registered Components 3 | . . . . . . . . . . . . . 1 . . . . . . . . . 1 1 . . Zone Layout 5 | . 1 . . . . . 1 1 . . . . 1 . . . . . . . . . 1 . . . Proto ID Catalog 1 | . . . . . 1 . . . . . . . . . . . . . . . . . . . . . Fabricator Hacks 22 | . . . . . . . . 8 . . . . 3 . . . . 7 . . . . 4 . . . Network Status 3 | . . . . . . . . . . . . . 1 . . . . 1 . . . . 1 . . . Load Schematic 12 | . . . . . . . . 5 . . . . 1 . . . . 4 . . . . 2 . . . Build 7 | . . . . . . . . 3 . . . . 1 . . . . 2 . . . . 1 . . . Repair Station Hacks 22 | . . . 2 . . . . 5 . . . . 6 . . . . 8 . . . . 1 . . . Scan Component 14 | . . . 1 . . . . 3 . . . . 4 . . . . 5 . . . . 1 . . . Repair 8 | . . . 1 . . . . 2 . . . . 2 . . . . 3 . . . . . . . . Recycling Unit Hacks 7 | . . . 1 . . . . . . . . . 1 . . . . . . . . . 5 . . . Retrieve Matter 2 | . . . . . . . . . . . . . . . . . . . . . . . 2 . . . Retrieve Components 5 | . . . 1 . . . . . . . . . 1 . . . . . . . . . 3 . . . Scanalyzer 7 | . . . . . . . 3 2 . . . . . . . . . 1 . . . . 1 . . . Insert Component 4 | . . . . . . . 1 1 . . . . . . . . . 1 . . . . 1 . . . Analyze 3 | . . . . . . . 2 1 . . . . . . . . . . . . . . . . . . Garrison Access Hacks 8 | . . . . . . . . 1 . . . . 2 . . . . 2 . . . . 1 1 1 . Seal Access 8 | . . . . . . . . 1 . . . . 2 . . . . 2 . . . . 1 1 1 . Unauthorized Hacks 41 | . 2 . 9 . . . 2 2 . . . . 3 3 . . 2 7 . . . . 11 . . . Terminals 30 | . 2 . 6 . . . 2 1 . . . . 2 2 . . 2 5 . . . . 8 . . . Track 2 | . . . . . . . . . . . . . . . . . 1 1 . . . . . . . . Assimilate 3 | . . . . . . . . . . . . . . . . . . 1 . . . . 2 . . . Botnet 12 | . 2 . 1 . . . . 1 . . . . 2 1 . . . 3 . . . . 2 . . . Disrupt 1 | . . . . . . . . . . . . . . 1 . . . . . . . . . . . . Skim 11 | . . . 5 . . . 2 . . . . . . . . . . . . . . . 4 . . . Sabotage 1 | . . . . . . . . . . . . . . . . . 1 . . . . . . . . . Fabricators 2 | . . . . . . . . . . . . . . . . . . 1 . . . . 1 . . . Liberate 2 | . . . . . . . . . . . . . . . . . . 1 . . . . 1 . . . Repair Stations 2 | . . . . . . . . 1 . . . . . . . . . . . . . . 1 . . . Patch 2 | . . . . . . . . 1 . . . . . . . . . . . . . . 1 . . . Recycling Units 7 | . . . 3 . . . . . . . . . 1 1 . . . 1 . . . . 1 . . . Recyclers 5 | . . . 1 . . . . . . . . . 1 1 . . . 1 . . . . 1 . . . Tunnel 2 | . . . 2 . . . . . . . . . . . . . . . . . . . . . . . Scanalyzers . | . . . . . . . . . . . . . . . . . . . . . . . . . . . Garrison Access . | . . . . . . . . . . . . . . . . . . . . . . . . . . . Data Cores Recovered 3 | . 1 . . . . . . . . . . . . . . . . 1 . . . . . 1 . . Used . | . . . . . . . . . . . . . . . . . . . . . . . . . . . Hacking Detections 109 | . 6 . 6 . . . 5 18 . . . . 21 4 . . 1 20 . . . . 15 5 4 4 Full Trace Events 19 | . 2 . . . . . . 6 . . . . 2 . . . . 4 . . . . 4 . 1 . Feedback Events 2 | . . . . . . . . . . . . . . . . . . 2 . . . . . . . . Corruption 1 | . . . . . . . . . . . . . . . . . . 1 . . . . . . . . Hackware Fried 1 | . . . . . . . . . . . . . . . . . . 1 . . . . . . . . Feedback Blocked . | . . . . . . . . . . . . . . . . . . . . . . . . . . . Robot Schematics Acquired 7 | . . . . . . . . . . . 7 . . . . . . . . . . . . . . . Robots Built . | . . . . . . . . . . . . . . . . . . . . . . . . . . . Authchips . | . . . . . . . . . . . . . . . . . . . . . . . . . . . Time . | . . . . . . . . . . . . . . . . . . . . . . . . . . . Total Robot Build Rating . | . . . . . . . . . . . . . . . . . . . . . . . . . . . Part Schematics Acquired 19 | . . . . . . . 1 3 . . 12 . 1 . . . . 2 . . . . . . . . Parts Built 14 | . . . . . . . . 6 . . . . 2 . . . . 4 . . . . 2 . . . Authchips . | . . . . . . . . . . . . . . . . . . . . . . . . . . . Time 465 | . . . . . . . . 136 . . . . 117 . . . . 106 . . . . 106 . . . Total Part Build Rating 78 | . . . . . . . . 28 . . . . 14 . . . . 24 . . . . 12 . . . Parts Repaired 6 | . . . 1 . . . . 2 . . . . 2 . . . . 1 . . . . . . . . Time 474 | . . . 32 . . . . 114 . . . . 130 . . . . 198 . . . . . . . . Parts Recycled . | . . . . . . . . . . . . . . . . . . . . . . . . . . . Recycled Matter . | . . . . . . . . . . . . . . . . . . . . . . . . . . . Retrieved Matter . | . . . . . . . . . . . . . . . . . . . . . . . . . . . Retrieved Components 5 | . . . 1 . . . . . . . . . . . . . . . . . . . 4 . . . Parts Scanalyzed 4 | . . . . . . . 1 1 . . . . . . . . . 1 . . . . 1 . . . Part Schematics Acquired 2 | . . . . . . . 1 1 . . . . . . . . . . . . . . . . . . Parts Damaged 1 | . . . . . . . . . . . . . . . . . . . . . . . 1 . . . Bothacking | -11 -10 -10 -9 -9 -9 -8 -8 -7 -7 -7 -7 -6 -6 -6 -6 -6 -6 -5 -5 -5 -5 -4 -4 -3 -2 -1 ------------ Run | Yrd Mat Min Mat Min Exi Min Mat Fac Low Low Dat Pro Fac Ext Cet Arc Hub Fac Upp Upp War Pro Fac Res Res Acc Used RIF Installer . | . . . . . . . . . . . . . . . . . . . . . . . . . . . Robots Hacked 7 | . . . . . 4 . . . . . . . . . . 1 . . . . . . . . 2 . Non-combat 3 | . . . . . 3 . . . . . . . . . . . . . . . . . . . . . Combat 4 | . . . . . 1 . . . . . . . . . . 1 . . . . . . . . 2 . Robot Hacks Applied 15 | . . . . . 12 . . . . . . . . . . 1 . . . . . . . . 2 . parse_system 15 | . . . . . 12 . . . . . . . . . . 1 . . . . . . . . 2 . Relay Couplers Released 7 | . . . . . . . . . . . . . . . . . . 6 . . . . . . 1 . Machine Destruction 3 | . . . . . . . . . . . . . . . . . . 2 . . . . . . 1 . Programmers 4 | . . . . . . . . . . . . . . . . . . 4 . . . . . . . . Fabnet Peak Effective % . | . . . . . . . . . . . . . . . . . . . . . . . . . . . Robots Rewired 26 | . . . . . . . . . . . . . . 21 . . . . . . 5 . . . . . Allies Hacked 3 | . . . . . . . . . . . . . . . . . . 3 . . . . . . . . Hacks Repelled . | . . . . . . . . . . . . . . . . . . . . . . . . . . . Allies | -11 -10 -10 -9 -9 -9 -8 -8 -7 -7 -7 -7 -6 -6 -6 -6 -6 -6 -5 -5 -5 -5 -4 -4 -3 -2 -1 -------- Run | Yrd Mat Min Mat Min Exi Min Mat Fac Low Low Dat Pro Fac Ext Cet Arc Hub Fac Upp Upp War Pro Fac Res Res Acc Total Allies 58 | . . . . 4 . . . . . . . . . 22 5 . . 15 . . 5 . 7 . . . Largest Group 19 | . . . . 4 4 3 . . . . . . . 19 18 9 7 4 . . 5 2 3 . . . Highest-Rated Group 966 | . . . . 71 71 40 . . . . . . . 696 966 700 536 199 . . 226 98 141 . . . Highest-Rated Ally 159 | . . . . 31 31 16 . . . . . . . 159 151 144 96 54 . . 49 49 47 . . . Total Orders . | . . . . . . . . . . . . . . . . . . . . . . . . . . . Ally Attacks 354 | . . . . 6 . 20 . . . . . . . 94 52 24 34 67 . . 39 4 14 . . . Total Damage 9471 | . . . . 32 . 214 . . . . . . . 1744 1786 783 1153 1603 . . 1588 145 423 . . . Kills 53 | . . . . 1 . 5 . . . . . . . 14 8 3 4 9 . . 7 . 2 . . . Allies Corrupted 7 | . . . . . . . . . . . . . . . . . 4 1 . . . . 2 . . . Allies Melted 2 | . . . . . . . . . . . . . . . . . . 1 . . 1 . . . . . Intel | -11 -10 -10 -9 -9 -9 -8 -8 -7 -7 -7 -7 -6 -6 -6 -6 -6 -6 -5 -5 -5 -5 -4 -4 -3 -2 -1 ------- Run | Yrd Mat Min Mat Min Exi Min Mat Fac Low Low Dat Pro Fac Ext Cet Arc Hub Fac Upp Upp War Pro Fac Res Res Acc Active Infowar (turns) 11388 | . . 2 . . . . . 798 235 323 . 672 140 . . . 51 2392 748 162 687 356 1729 808 1407 878 Sensors 2728 | . . 2 . . . . . . 235 69 . 488 . . . . . . 727 162 687 356 2 . . . Terrain 5708 | . . . . . . . . . . . . . . . . . . 1198 . . . . 1422 808 1407 873 Traps 2242 | . . . . . . . . . . . . . . . . . . 2185 57 . . . . . . . Seismic 1 | . . . . . . . . . . . . . . . . . . . . . . . . . 1 . Cloaking 24 | . . . . . . . . . . . . . . . . . . . . . . . . . . 24 ECM 5137 | . . . . . . . . 798 . 254 . 318 140 . . . 51 1469 . . . 298 1363 190 256 . Robot Analysis Total 5 | . 1 . 2 . . . . . . . . . 1 . . . . 1 . . . . . . . . Derelict Logs Recovered 7 | . . . . 2 . . . . 2 . . . . . . . . . 2 1 . . . . . . Drone Launches . | . . . . . . . . . . . . . . . . . . . . . . . . . . . Drone Recoveries . | . . . . . . . . . . . . . . . . . . . . . . . . . . . Exploration | -11 -10 -10 -9 -9 -9 -8 -8 -7 -7 -7 -7 -6 -6 -6 -6 -6 -6 -5 -5 -5 -5 -4 -4 -3 -2 -1 ------------- Run | Yrd Mat Min Mat Min Exi Min Mat Fac Low Low Dat Pro Fac Ext Cet Arc Hub Fac Upp Upp War Pro Fac Res Res Acc Turns Passed 27157 | 113 930 383 2002 683 621 550 1658 2458 235 461 62 914 2511 1050 461 311 312 2996 763 162 788 394 2779 812 1407 1341 Spaces Moved 24643 | 57 477 211 914 398 374 311 705 1812 282 501 80 897 2426 706 241 209 271 2876 857 306 575 405 3435 1153 2466 1698 Core 4 | 4 . . . . . . . . . . . . . . . . . . . . . . . . . . Treads 3454 | 53 477 211 914 398 374 311 705 11 . . . . . . . . . . . . . . . . . . Legs 595 | . . . . . . . . 595 . . . . . . . . . . . . . . . . . . Wheels . | . . . . . . . . . . . . . . . . . . . . . . . . . . . Hover 20590 | . . . . . . . . 1206 282 501 80 897 2426 706 241 209 271 2876 857 306 575 405 3435 1153 2466 1698 Flight . | . . . . . . . . . . . . . . . . . . . . . . . . . . . Fastest Speed 29 | 50 160 160 160 160 160 160 160 71 71 71 71 71 61 61 61 61 61 53 53 53 53 53 29 46 36 31 Average Speed 72 | 154 160 160 160 160 160 160 189 94 71 71 71 77 61 61 72 61 84 59 53 53 54 53 46 46 41 43 Slowest Speed 246 | 160 160 160 160 160 160 160 246 246 71 71 71 141 127 61 127 61 127 127 53 53 116 53 107 107 116 142 Overloaded Moves 3 | . . . . . . . . . . . . . . . . . . . . . . . 2 . . 1 Propulsion Burnouts . | . . . . . . . . . . . . . . . . . . . . . . . . . . . Robots Hopped . | . . . . . . . . . . . . . . . . . . . . . . . . . . . Potential Cave-ins 1 | . . . . . . . . . . . . . . . . . 1 . . . . . . . . . Cave-ins Triggered . | . . . . . . . . . . . . . . . . . . . . . . . . . . . Exploration Rate (%) 60 | 4 71 45 88 80 71 73 46 52 47 66 68 80 57 85 66 79 36 61 78 50 71 49 60 33 67 57 Regions Visited 26 Branch Regions 16 Pre-discovered Areas 8 | . . . 5 . 1 . . . . . 1 . . . . . . . . 1 . . . . . . Known Exits Taken 15 | . 1 . . 1 . 1 . 1 1 . . . 1 . . . 1 1 1 1 1 1 1 1 1 . Unknown Exits Taken 11 | 1 . 1 1 . 1 . 1 . . 1 1 1 . 1 1 1 . . . . . . . . . . Scrap Searched 15 | . . . . 3 . 1 . . 1 4 . 2 . . . . . . 1 2 . 1 . . . . Spaces Dug 201 | . . . . . . 10 . 14 1 1 . 9 21 . . . 4 30 3 . . 8 70 8 6 16 Terrain Destroyed 1053 | 6 . . 4 . . 99 1 26 3 8 . 77 41 15 91 . 8 78 30 1 38 50 338 19 26 94 Melee 165 | . . . . . . . . 10 . 1 . 1 18 . . . 4 30 3 . . 8 61 7 6 16 Projectile 386 | . . . . . . . 1 14 3 7 . 31 23 15 2 . 4 48 27 1 38 14 84 12 20 42 AOE 501 | 6 . . 4 . . 99 . 2 . . . 45 . . 89 . . . . . . 28 193 . . 35 Terrain Rammed . | . . . . . . . . . . . . . . . . . . . . . . . . . . . Walls Destroyed . | . . . . . . . . . . . . . . . . . . . . . . . . . . . Machines Disabled . | . . . . . . . . . . . . . . . . . . . . . . . . . . . Actions | -11 -10 -10 -9 -9 -9 -8 -8 -7 -7 -7 -7 -6 -6 -6 -6 -6 -6 -5 -5 -5 -5 -4 -4 -3 -2 -1 --------- Run | Yrd Mat Min Mat Min Exi Min Mat Fac Low Low Dat Pro Fac Ext Cet Arc Hub Fac Upp Upp War Pro Fac Res Res Acc Total 31561 | 70 564 235 1201 442 391 340 918 2312 312 559 84 1010 3239 1223 499 363 335 3906 1128 305 989 545 4358 1350 2807 2076 Wait 4179 | . 5 1 88 28 . 7 92 245 27 24 1 29 550 292 216 119 39 714 242 . 313 101 615 60 204 167 Move 24617 | 56 476 210 913 397 373 310 704 1811 281 500 79 896 2425 705 240 208 270 2875 856 305 574 404 3435 1152 2465 1697 Hop . | . . . . . . . . . . . . . . . . . . . . . . . . . . . Pick Up 222 | 3 16 3 14 4 2 . 18 31 . 2 . 3 27 4 4 3 1 26 2 . 3 2 23 10 17 4 Fast Attach 142 | 6 . . 5 . . . 3 7 . . 2 1 29 . 3 4 2 18 . . 9 . 8 17 22 6 Attach 67 | . 1 . 7 . 1 . 3 17 . 1 . 5 4 2 3 . . 4 . . 1 2 3 1 2 10 Detach 10 | . . . 1 . . . . . . . . 1 2 . 1 1 . . . . . . 1 2 1 . Swap 467 | . 11 5 20 2 1 7 11 37 1 9 . 11 45 17 8 3 6 96 9 . 8 9 64 17 20 50 Drop 331 | . 10 4 20 6 2 1 25 35 . 2 2 1 47 2 4 5 3 41 2 . 10 . 32 25 44 8 Fire 943 | 5 43 10 126 3 . 11 53 115 3 19 . 62 63 56 16 4 10 80 13 . 29 19 87 20 24 72 Melee 320 | . . . . . 12 . . 14 . 1 . 1 38 . 4 16 4 52 4 . . 8 90 33 8 35 Ram 1 | . . . . . . . . . . 1 . . . . . . . . . . . . . . . . Kick . | . . . . . . . . . . . . . . . . . . . . . . . . . . . Crush 26 | . 2 2 7 2 . 4 9 . . . . . . . . . . . . . . . . . . . Escape Stasis 66 | . . . . . . . . . . . . . . 26 . . . . . . . . . 13 . 27 Rewire 161 | . . . . . . . . . . . . . . 119 . . . . . . 42 . . . . . Trap . | . . . . . . . . . . . . . . . . . . . . . . . . . . . Miscellaneous 9 | . . . . . . . . . . . . . 9 . . . . . . . . . . . . . Route ------- -11/Scrapyard -10/Materials (discovered 4 exits: *Mat x2 / *Min x2) -10/Mines -9/Materials (discovered 5 exits: *Mat x3 / [*Min x2]) -9/Mines (discovered 3 exits: *Mat x2 / *Exi) -9/Exiles -8/Mines -8/Materials -7/Factory (discovered 4 exits: *Fac x2 / *Low x2) -7/Lower Caves -7/Lower Caves (discovered 2 exits: *Fac / *Dat) -7/Data Miner -6/Proximity Caves -6/Factory (discovered 5 exits: *Fac x2 / [*Low] / *Ext x2) -6/Extension (discovered 3 exits: *Fac x2 / *Cet) -6/Cetus (discovered 2 exits: *Fac / [*Arc]) -6/Archives (discovered 3 exits: *Fac / *Hub x2) -6/Hub_04(d) (discovered 4 exits: *Fac x4) -5/Factory (discovered 2 exits: *Fac / *Upp) -5/Upper Caves -5/Upper Caves (discovered 2 exits: *Fac / *War) -5/Warlord -4/Proximity Caves -4/Factory (discovered 5 exits: *Res x3 / *Upp / [Arm]) -3/Research (discovered 3 exits: *Res x3) -2/Research (discovered 3 exits: *Acc / *Tes x2) -1/Access (discovered 1 exit: [Sur]) History --------- Turn | Location | Event 19 | -11/Scrapyard | Discovered new exit (range 15) 114 | -11/Scrapyard | Entered Materials 228 | -10/Materials | Discovered new exit (range 7) 309 | -10/Materials | Build established: Mutant 349 | -10/Materials | Discovered new exit (range 8) 625 | -10/Materials | Discovered new exit (range 16) 959 | -10/Materials | Discovered new exit (range 19) 959 | -10/Materials | Identified exit to Mines 1044 | -10/Materials | Entered Mines 1199 | -10/Mines | Found a damaged Exp. Sensor Array with a note attached 1202 | -10/Mines | Found Prototype Device 1211 | -10/Mines | Identified Exp. Sensor Array 1363 | -10/Mines | Discovered new exit (range 14) 1427 | -10/Mines | Entered Materials 1427 | -9/Materials | Evolved 2 slots: Propulsion x1, Utility x1 1672 | -9/Materials | Discovered new exit (range 10) 1916 | -9/Materials | Build established: Scavenger-Mutant 2057 | -9/Materials | Discovered new exit (range 7) 2749 | -9/Materials | Loaded intel: 14 trap records 2822 | -9/Materials | Learned location of 1 exit from Storage 2883 | -9/Materials | Learned location of Zion (-6) 2935 | -9/Materials | Learned location of 1 exit from Recycling 2978 | -9/Materials | Identified exit to Materials 2997 | -9/Materials | Discovered exit to Materials (range 13) 3112 | -9/Materials | Core integrity fell below 50% 3297 | -9/Materials | Repaired Hrd. Light Armor Plating 3427 | -9/Materials | First assault squad dispatched 3429 | -9/Materials | Entered Mines 3441 | -9/Mines | Met a Derelict bent on vengeance 3548 | -9/Mines | Discovered exit to Materials (range 5) 3620 | -9/Mines | Learned Materials garrison access intel 3643 | -9/Mines | Received a Rocket Launcher from a helpful Derelict 3656 | -9/Mines | Found a hidden stash of uninstalled traps 3677 | -9/Mines | Discovered exit to Materials (range 11) 3826 | -9/Mines | Assembled infested the area 3848 | -9/Mines | Assisted by bots powering up and referring to "LRC-V3" 3875 | -9/Mines | Met 8R-AWN 4019 | -9/Mines | Identified exit to Exiles 4054 | -9/Mines | Received a Mining Laser from a helpful Derelict 4112 | -9/Mines | Entered Exiles 4112 | -9/Exiles | Accompanied by 4 allies 4151 | -9/Exiles | Welcomed by 8R-AWN 4186 | -9/Exiles | Met EX-HEX 4232 | -9/Exiles | Met EX-BIN 4337 | -9/Exiles | Aligned with FarCom system 4338 | -9/Exiles | Given EX-Vault access code 4377 | -9/Exiles | Opened EX-Vault 4385 | -9/Exiles | Found Trap Reconfigurator 4418 | -9/Exiles | Warned to stay clear of 0b10 Research branches 4462 | -9/Exiles | Met EX-DEC 4716 | -9/Exiles | Discovered new exit (range 10) 4733 | -9/Exiles | Left Exiles lab with Trap Reconfigurator 4733 | -9/Exiles | Entered Mines 4733 | -8/Mines | Accompanied by 3 allies 5264 | -8/Mines | Discovered exit to Materials (range 12) 5283 | -8/Mines | Entered Materials 5283 | -8/Materials | Evolved 2 slots: Utility x1, Weapon x1 5284 | -8/Materials | Loaded intel: 1 garrison access location 5845 | -8/Materials | Build established: Tank 6037 | -8/Materials | Garrison activated, responded to threat 6155 | -8/Materials | Build established: Skirmisher 6590 | -8/Materials | Discovered new exit (range 15) 6941 | -8/Materials | Entered Factory 6941 | -7/Factory | Evolved 2 slots: Propulsion x1, Utility x1 7321 | -7/Factory | Fabricated Cmb. Airjet (x2) 7339 | -7/Factory | Fabricated Cmb. Airjet (x2) 7509 | -7/Factory | Build established: Scavenger-Skirmisher 8461 | -7/Factory | Build established: Machinist-Skirmisher 8475 | -7/Factory | Discovered new exit (range 16) 9025 | -7/Factory | Fabricated Powered Armor (x2) 9055 | -7/Factory | Identified exit to Lower Caves 9072 | -7/Factory | Discovered new exit (range 13) 9085 | -7/Factory | Build established: Machinist-Mutant 9154 | -7/Factory | Repaired Enh. Nuclear Core 9255 | -7/Factory | Repaired Gauss Rifle 9399 | -7/Factory | Entered Lower Caves 9407 | -7/Lower Caves | Identified exit to Lower Caves 9441 | -7/Lower Caves | Learned location of 1 exit from Factory 9544 | -7/Lower Caves | Encountered a Warlord checkpoint 9634 | -7/Lower Caves | Entered another Lower Caves area 9663 | -7/Lower Caves | Discovered new exit (range 5) 9693 | -7/Lower Caves | Build established: Machinist-Gunner 9706 | -7/Lower Caves | Attracted the attention of an 0b10 outpost 9986 | -7/Lower Caves | Spotted B-75 Beast 10023 | -7/Lower Caves | Encountered a Warlord checkpoint 10087 | -7/Lower Caves | Discovered new exit (range 13) 10095 | -7/Lower Caves | Entered Data Miner 10095 | -7/Data Miner | Discovered new exit (range 6) 10111 | -7/Data Miner | Met Data Miner 10123 | -7/Data Miner | Learned location of Section 7 (-3) 10123 | -7/Data Miner | Acquired the access code to Warlord's prototype stash 10134 | -7/Data Miner | Received God Mode back door access code from Data Miner 10157 | -7/Data Miner | Entered Proximity Caves 10365 | -6/Proximity Caves | Found DCF Scrap (16 items) 10522 | -6/Proximity Caves | Attracted the attention of an 0b10 checkpoint 10574 | -6/Proximity Caves | Destroyed 9 combat bots 10778 | -6/Proximity Caves | Core integrity fell below 50% 10988 | -6/Proximity Caves | Build established: Gunner 11059 | -6/Proximity Caves | Discovered new exit (range 15) 11071 | -6/Proximity Caves | Entered Factory 11071 | -6/Factory | Evolved 2 slots: Propulsion x1, Utility x1 11072 | -6/Factory | Identified exit to Extension 11234 | -6/Factory | Discovered new exit (range 7) 11444 | -6/Factory | Discovered exit to Extension (range 4) 11978 | -6/Factory | Build established: Mutant 12421 | -6/Factory | Found Prototype Launcher 12421 | -6/Factory | Identified Rocket Array 12632 | -6/Factory | Fabricated Adv. Reaction Control System (x2) 12816 | -6/Factory | Repaired Cld. Aerolev Unit 12867 | -6/Factory | Repaired Cmb. Airjet 12888 | -6/Factory | Build established: Hacker-Skirmisher 13061 | -6/Factory | Discovered new exit (range 8) 13468 | -6/Factory | Discovered new exit (range 9) 13518 | -6/Factory | Build established: Hacker-Mutant 13582 | -6/Factory | Entered Extension 13889 | -6/Extension | Rescued A7 13992 | -6/Extension | Energy Cycler disabled 13992 | -6/Extension | Rescued a captive Derelict 13995 | -6/Extension | Rescued a captive Derelict 14247 | -6/Extension | Spotted B-75 Beast 14247 | -6/Extension | Allies destroyed B-75 Beast 14258 | -6/Extension | Spotted B-75 Beast 14279 | -6/Extension | Allies destroyed B-75 Beast 14289 | -6/Extension | Discovered new exit (range 16) 14342 | -6/Extension | Build established: Commander-Gunner 14565 | -6/Extension | Discovered new exit (range 10) 14565 | -6/Extension | Discovered new exit (range 6) 14632 | -6/Extension | First assault squad dispatched 14632 | -6/Extension | Entered Cetus 14632 | -6/Cetus | Accompanied by 17 allies (A7) 14637 | -6/Cetus | Acquired a Cetus Manufacturing Module code from A7 14644 | -6/Cetus | Spotted Cetus Guard 14649 | -6/Cetus | Spotted Cetus Guard 14651 | -6/Cetus | Spotted Cetus Guard 14654 | -6/Cetus | Spotted Cetus Guard 14657 | -6/Cetus | Destroyed Cetus Guard 14662 | -6/Cetus | Allies destroyed Cetus Guard 14665 | -6/Cetus | Allies destroyed Cetus Guard 14666 | -6/Cetus | Allies destroyed Cetus Guard 14685 | -6/Cetus | Lost 3 parts (1n2u) 14686 | -6/Cetus | Lost 4 allies 14747 | -6/Cetus | Started Cetus Manufacturing Module 14752 | -6/Cetus | Escorted A7 to Cetus Mainframe 14772 | -6/Cetus | Manufactured an Enhanced Grunt 14797 | -6/Cetus | Manufactured an Enhanced Grunt 14822 | -6/Cetus | Manufactured an Enhanced Grunt 14847 | -6/Cetus | Manufactured an Enhanced Grunt 14872 | -6/Cetus | Manufactured an Enhanced Grunt 14889 | -6/Cetus | Discovered new exit (range 15) 14957 | -6/Cetus | Spotted Cetus Guard 14957 | -6/Cetus | Spotted Cetus Guard 14958 | -6/Cetus | Spotted Cetus Guard 14958 | -6/Cetus | Destroyed Cetus Guard 14959 | -6/Cetus | Spotted Cetus Guard 14970 | -6/Cetus | Allies destroyed Cetus Guard 14977 | -6/Cetus | Allies destroyed Cetus Guard 14980 | -6/Cetus | Allies destroyed Cetus Guard 14990 | -6/Cetus | Discovered new exit (range 16) 15006 | -6/Cetus | Met Revision 17 15008 | -6/Cetus | Lost 8 allies 15057 | -6/Cetus | Found Prototype Protection 15058 | -6/Cetus | Identified Med. Regenerative Plating 15093 | -6/Cetus | Entered Archives 15093 | -6/Archives | Accompanied by 10 allies (A7) 15098 | -6/Archives | Received a hacking code to weaken MAIN.C 15160 | -6/Archives | Discovered new exit (range 16) 15207 | -6/Archives | Discovered new exit (range 16) 15351 | -6/Archives | Discovered new exit (range 15) 15404 | -6/Archives | Entered Hub_04(d) 15404 | -6/Hub_04(d) | Accompanied by 7 allies 15501 | -6/Hub_04(d) | Identified exit to Factory 15605 | -6/Hub_04(d) | Network Hub disabled 15606 | -6/Hub_04(d) | Spotted Lightning 15607 | -6/Hub_04(d) | Spotted Lightning 15608 | -6/Hub_04(d) | Spotted Lightning 15662 | -6/Hub_04(d) | Lost 7 allies 15716 | -6/Hub_04(d) | Spotted B-75 Beast 15716 | -6/Hub_04(d) | Entered Factory 15716 | -5/Factory | Evolved 2 slots: Power x1, Propulsion x1 15921 | -5/Factory | Build established: Hacker-Mutant 16190 | -5/Factory | Discovered new exit (range 5) 16415 | -5/Factory | Imp. System Shield fried by hacking feedback 16438 | -5/Factory | Incoming investigation squad redirected 16569 | -5/Factory | Incoming investigation squad redirected 16603 | -5/Factory | Fabricated Cmb. Gravmag System? 17010 | -5/Factory | Repaired Adv. KE Penetrator 17047 | -5/Factory | Allied Derelicts emerged from ambush trap array 17559 | -5/Factory | Noticed a derelict Sapper rigging charges 17661 | -5/Factory | Fabricated Cmb. Gravmag System? 18116 | -5/Factory | First assault squad dispatched 18185 | -5/Factory | Build established: Machinist-Mutant 18401 | -5/Factory | Discovered new exit (range 9) 18433 | -5/Factory | Identified exit to Factory 18642 | -5/Factory | Identified exit to Upper Caves 18712 | -5/Factory | Entered Upper Caves 18756 | -5/Upper Caves | Learned Factory security intel 19365 | -5/Upper Caves | Learned Factory trap positions 19472 | -5/Upper Caves | Discovered new exit (range 7) 19474 | -5/Upper Caves | Identified exit to Upper Caves 19475 | -5/Upper Caves | Entered another Upper Caves area 19489 | -5/Upper Caves | Discovered exit to Factory (range 14) 19521 | -5/Upper Caves | Learned location of Armory (-4) 19635 | -5/Upper Caves | Discovered new exit (range 5) 19637 | -5/Upper Caves | Identified exit to Warlord 19637 | -5/Upper Caves | Entered Warlord 19656 | -5/Warlord | System corruption cleaned by Quarantine Array 19673 | -5/Warlord | Opened Warlord's prototype stash 19686 | -5/Warlord | Found Prototype Device 19686 | -5/Warlord | Identified Exp. Focal Shield 19691 | -5/Warlord | Found Prototype Device 19691 | -5/Warlord | Identified Exp. Phase Shifter 19830 | -5/Warlord | Met Warlord 19855 | -5/Warlord | Warlord's base attacked by MAIN.C 20071 | -5/Warlord | Build established: Commander-Mutant 20205 | -5/Warlord | Warlord forces counterattacked 20221 | -5/Warlord | Spotted Executioner 20266 | -5/Warlord | Lost 10 allies 20296 | -5/Warlord | Spotted Executioner 20305 | -5/Warlord | Allies destroyed Executioner 20353 | -5/Warlord | Discovered new exit (range 12) 20355 | -5/Warlord | Spotted Striker 20355 | -5/Warlord | Spotted Executioner 20362 | -5/Warlord | Lost 3 allies 20392 | -5/Warlord | Allies destroyed Executioner 20402 | -5/Warlord | Found Exp. Core Analyzer 20406 | -5/Warlord | Identified exit to Proximity Caves 20414 | -5/Warlord | Lost 8 allies 20425 | -5/Warlord | Entered Proximity Caves 20425 | -4/Proximity Caves | Accompanied by 2 allies 20782 | -4/Proximity Caves | Build established: Machinist-Mutant 20811 | -4/Proximity Caves | Discovered exit to Factory (range 15) 20819 | -4/Proximity Caves | Entered Factory 20819 | -4/Factory | Evolved 2 slots: Propulsion x1, Utility x1 20820 | -4/Factory | Loaded intel: 115 trap records 20917 | -4/Factory | Discovered new exit (range 14) 20941 | -4/Factory | Discovered new exit (range 8) 20944 | -4/Factory | Identified exit to Upper Caves 21070 | -4/Factory | Fabricated Cmb. Gravmag System? 21121 | -4/Factory | Build established: Machinist-Ninja 21221 | -4/Factory | Discovered new exit (range 9) 21239 | -4/Factory | Identified exit to Research 21272 | -4/Factory | Found Prototype Launcher 21272 | -4/Factory | Identified Mni. Smartbomb Launcher 21334 | -4/Factory | Cargo convoy interrupted 21535 | -4/Factory | Destroyed 8 combat bots 22225 | -4/Factory | Discovered new exit (range 24) 22265 | -4/Factory | Build established: Scout 22449 | -4/Factory | Discovered exit to Research (range 15) 22868 | -4/Factory | Incoming investigation squad redirected 23598 | -4/Factory | Entered Research 23598 | -3/Research | Evolved 2 slots: Utility x2 23610 | -3/Research | Build established: Ninja 23717 | -3/Research | Discovered new exit (range 13) 23758 | -3/Research | Identified exit to Research 23798 | -3/Research | Revision forces began assault on 0b10 23917 | -3/Research | Met up with Revision 17++ 23988 | -3/Research | Build established: Scavenger-Ninja 24191 | -3/Research | Found Prototype Launcher 24191 | -3/Research | Identified Hellfire Missile Launcher 24298 | -3/Research | Research terminal network offline 24362 | -3/Research | Spotted Striker 24410 | -3/Research | Entered another Research area 24410 | -2/Research | Warlord forces began assault on 0b10 24410 | -2/Research | Evolved 2 slots: Propulsion x1, Utility x1 24520 | -2/Research | Research machine network offline 24710 | -2/Research | Spotted Striker 24780 | -2/Research | Discovered new exit (range 16) 24809 | -2/Research | Identified exit to Testing 24933 | -2/Research | Met up with Warlord 24934 | -2/Research | Met DD-05H 25114 | -2/Research | Discovered exit to Testing (range 16) 25128 | -2/Research | Build established: Scavenger-Scout 25156 | -2/Research | Borebot progress halted 25279 | -2/Research | Discovered new exit (range 15) 25284 | -2/Research | Identified exit to Access 25293 | -2/Research | Borebot progress halted 25339 | -2/Research | Borebot progress halted 25436 | -2/Research | Spotted Striker 25462 | -2/Research | Spotted Executioner 25492 | -2/Research | Warlord invited to help at Command 25492 | -2/Research | Given Cave Seal Controls access code 25817 | -2/Research | Entered Access 25817 | -1/Access | Evolved 2 slots: Utility x1, Weapon x1 26808 | -1/Access | Discovered new exit (range 13) 27065 | -1/Access | System corruption reached 10% 27101 | -1/Access | Lost 4 parts (1p2u1w) 27136 | -1/Access | Core integrity fell below 50% 27155 | -1/Access | Core integrity fell below 20% 27158 | -1/Access | Destroyed by B-74 Champion with Powered Hammer Last Messages --------------- 27147_ Slug penetrates Wall. 27147_ P-80 Master resets P-80 Master, system corruption cleaned. 27148_ Penetrated by Slug. 27148_ Cmb. Antigrav System destroyed. 27150_ Slug penetrates Wall. 27150_ Penetrated by Slug. 27151_ Slug penetrates Wall. 27152_ P-80 Master resets B-74 Champion, system corruption cleaned. 27152_ Cmb. Linear Gravjet destroyed. 27153_ Penetrated by Slug. 27155_ Lrg. Storage Unit destroyed. 27156_ Penetrated by Slug. 27156_ Slug penetrates B-74 Champion. 27158_ Penetrated by Slug. 27158_ Adv. Terrain Scan Processor destroyed. 27158_ System corrupted by crushing effect (+3). [Achievement: 40k Club] [Achievement: Overachiever] Map ----- +----------------------------------------------------+ | ???????????# " ! ##????????????????????? | | ?? ????????######## * #?????????????????????? | | ??????????????????# #?????????????????????? | | ""?? ?????????????# #?????????????????????? | | ???? ?????????????## # #?????????????????????? | | ?? ???????????????### #?????????????????????? | | "?????#??????????????# #?????????????????????? | | ? ??#? ? ??????????# #?????????????????????? | | ?? ???# ??"??????????# #?????????????????????? | | ?? ?????????????????# #?????????????????????? | | ?######??""??????????# #?????????????????????? | | ??? #??????????????# #################?????? | | ?? + ???"?????????# g # #?????? | | ??## #?? ?????????# *+% #?????? | | ???# #?? ? ????????# # #?????? | | ???# #??????????????# hp #h #?????? | | ##?# # ? ??"???????#hgY h# ####### | | ???# #? ??????????# gpp# + | | ???# #?????#????????# # #####"# | | #### #??#??#????????# p # #???## | | # ###?#???#??????# # #????# | | / #???#??????????# # #????# | | # #???##??#??????# #####+########+##????# | | # ##?#?#?#?##????# #????????????????????## | | # #?? ??? #????# b] #?????????????????????? | | [ # # ??? #????# /@ #????p????????????????? | | # #?? " #????# #?????????????????????? | | # # """ #????# #?????????????????????? | | # + """?????# #????g????????????????? | | # # " ##???# #?????????????????????? | | # #? #????#^ ^#?????????????????????? | | # # ?? #????# #?????????????????????? | | #### ##????#####????# ?????????????????????? | | ??## #?#??#????#?#??# ?????????????????????? | | #### #??????????????# ????????????????????? | | + #?#????????????# ????????????????????? | | # #?????????#????########????????????????????? | | # ###??##????#??#????????????????????????????? | | # #??##??#?????#?#?????????????????????????? | | ###?#???#????????????????????????????????? | | # # ##??#??????????#?????????????????????????? | | ## #???#####??????????????????????????? ?? ? | | ##?#??#?#??#???????????????????????? ! ? | | # ##???#????????????????????????????? ? ? | | ##??#??#???#?????? ???????? ??? ? ? | | #######???##?#???#?? ??????????#? ????? | | # #????#???##???#?#?# ?? ??????????? ? ???? | | # #? ??? ??? ??#??#?????????????????? ?? | | # #?? ??? #??????????????? ?#? ??? ?? ?? | | ! # # ? """" #???#?????????##??? ? ? ? ? | +----------------------------------------------------+ Best States ------------- Heat Dissipation 102 Energy Generation 57 Energy Capacity 600 Matter Stores 300 Matter Capacity 300 Sight Range 16 Robot Scan Range 20 Terrain Scan Range 24 Terrain Scan Density 210 ECM Strength 1 Cloak Strength 4 Power Amplification 30 Additional Mass Support 9 Armor Coverage 550 Resistance: KI 30 Resistance: TH 25 Resistance: EM 25 Weapon Cycling 25 Phase Shifting 20 Evasion (%) 85 Targeting Accuracy 8 Target Analysis 8 Core Analysis 8 Armor Integrity Analysis 40 Recoil Reduction 3 Particle Charging 20 Kinecelleration 40 Offensive Hacking 24 Defensive Hacking 24 Item Schematics ----------------- Cmb. Airjet | -8/Materials | Scanalyzed Gauss Rifle | -7/Factory | Hacked Powered Armor | -7/Factory | Hacked Enh. Nuclear Core | -7/Factory | Scanalyzed Combat Drone Bay | -7/Data Miner | Free Lgt. Regenerative Plating | -7/Data Miner | Free Cld. Aerolev Unit | -7/Data Miner | Free Thermal Defense Suite | -7/Data Miner | Free Imp. Heavy Laser | -7/Data Miner | Free Field Propulsion Drive | -7/Data Miner | Free Imp. Recalibrator | -7/Data Miner | Free Enh. Gauss Cannon | -7/Data Miner | Free Plasma Rifle | -7/Data Miner | Free Imp. Launcher Guidance Computer | -7/Data Miner | Free Lrn. Tractor Beam | -7/Data Miner | Free Graphene Brace | -7/Data Miner | Free Adv. Reaction Control System | -6/Factory | Hacked Cmb. Gravmag System | -5/Factory | Hacked Adv. Thermal Shield | -5/Factory | Hacked Robot Schematics ------------------ H-66 Slayer | -7/Data Miner | Free M-14 Sweeper | -7/Data Miner | Free H-55 Commando | -7/Data Miner | Free A-15 Conveyor | -7/Data Miner | Free B-48 Gladiator | -7/Data Miner | Free G-50 Soldier | -7/Data Miner | Free P-70 Sage | -7/Data Miner | Free Fabricated ------------ Cmb. Airjet | x2 | -7/Factory Cmb. Airjet | x2 | -7/Factory Powered Armor | x2 | -7/Factory Adv. Reaction Control System | x2 | -6/Factory Cmb. Gravmag System | x2 | -5/Factory Cmb. Gravmag System | x2 | -5/Factory Cmb. Gravmag System | x2 | -4/Factory Repaired ---------- Hrd. Light Armor Plating | 31% | -9/Materials Enh. Nuclear Core | 68% | -7/Factory Gauss Rifle | 64% | -7/Factory Cld. Aerolev Unit | 59% | -6/Factory Cmb. Airjet | 67% | -6/Factory Adv. KE Penetrator | 16% | -5/Factory Alien Tech Used ----------------- None Achievements -------------- 40k Club Gunslinger Overachiever Challenges ------------ None Game ------ Seed TractorProtonMatter Manual? 0 Play Time 06:51:17 Cumulative 140.2 hours Start 2025.07.20 @ 20:32:32 End 2025.07.21 @ 13:29:59 Sessions 3 Manual Loads 0 Difficulty Rogue Special Mode None Game No. 101 Rogue 101 Adventurer 0 Explorer 0 Win Type - Total 3 Types 2/0/1/0/0/0/0/0/0/0 Lore% 53 Gallery% 47 Achievement% 50 Wizard Run 0 Options --------- Layout 2 ASCII 0 Keyboard 1 Movement Numpad Keybinds 0 Fullscreen 2 Font 32/SmallcapsGlow Map View 50x44 Zoom Use 0% Tactical HUD 1 Map Filters NONE Filters NONE Steam 1 RUN: c46e9eb6-0724-4e84-8b77-3bdc1ba1312c